fUST/lending_fUST_20250511
["ID","MTS","AMOUNT","RATE_DAILY","PERIOD"]
[360735717,1746957355186,-738.08,8.069e-05,2]
[360735718,1746957355212,-221.39884723,8.069e-05,2]
[360735719,1746957355237,-401.09152801,8.069e-05,2]
[360735720,1746957355267,-1347.89,8.069e-05,2]
[360735721,1746957355293,-400.0,8.069e-05,2]
[360735722,1746957355321,-400.0,8.069e-05,2]
[360735723,1746957355348,-1134.1,8.069e-05,2]
[360735724,1746957355380,-515.23,8.069e-05,2]
[360735725,1746957355406,-400.0,8.069e-05,2]
[360735726,1746957355434,-400.0,8.069e-05,2]
[360735727,1746957355462,-400.0,8.069e-05,2]
[360735728,1746957355489,-400.0,8.069e-05,2]
[360735729,1746957355514,-400.0,8.069e-05,2]
[360735730,1746957355540,-400.0,8.069e-05,2]
[360735731,1746957355565,-400.0,8.069e-05,2]
[360735732,1746957355591,-400.0,8.069e-05,2]
[360735733,1746957355615,-400.03,8.069e-05,2]
[360735734,1746957355640,-400.0,8.069e-05,2]
[360735735,1746957355665,-703.9,8.069e-05,2]
[360735736,1746957355691,-400.0,8.069e-05,2]
[360735737,1746957355715,-400.0,8.069e-05,2]
[360735738,1746957355740,-400.0,8.069e-05,2]
[360735739,1746957355765,-400.0,8.069e-05,2]
[360735740,1746957355791,-632380.14571634,8.07e-05,2]
[360735741,1746957355815,-151.0,8.07e-05,2]
[360735742,1746957355843,-151.796425,8.07e-05,2]
[360735743,1746957355867,-151.0,8.07e-05,2]
[360735744,1746957355892,-218.895774,8.07e-05,2]
[360735745,1746957355919,-218.895774,8.07e-05,2]
[360735746,1746957355945,-179.086,8.07e-05,2]
[360735747,1746957355969,-6515.35846519,8.07e-05,2]
[360735748,1746957355995,-500.0,8.082e-05,2]
[360735749,1746957356021,-3856.9422232,8.098e-05,2]
[360735750,1746957356047,-500.0,8.109e-05,2]
[360735751,1746957356071,-425.49784357,8.137e-05,2]
[360735752,1746957356097,-369.3157624,8.14e-05,2]
[360735753,1746957356122,-362.8462185,8.14e-05,2]
[360735754,1746957356147,-362.8462185,8.14e-05,2]
[360735755,1746957356172,-834.651579,8.14e-05,2]
[360735756,1746957356198,-255.9499517,8.14e-05,2]
[360735757,1746957356224,-157.8397362,8.14e-05,2]
[360735758,1746957356249,-157.8397362,8.14e-05,2]
[360735759,1746957356275,-157.8397362,8.14e-05,2]
[360735760,1746957356300,-157.6025667,8.14e-05,2]
[360735761,1746957356326,-1153.7715431,8.14e-05,2]
[360735762,1746957356353,-398.8562338,8.14e-05,2]
[360735763,1746957356378,-308.4835268,8.14e-05,2]
[360735764,1746957356404,-313.7311665,8.202e-05,2]
[360735765,1746957356430,-151.0,8.219e-05,2]
[360735766,1746957356456,-400.0,8.294e-05,2]
[360735767,1746957356484,-476.31,8.294e-05,2]
[360735768,1746957356513,-349.77910224,8.294e-05,2]
[360735769,1746957356539,-400.0,8.294e-05,2]
[360735770,1746957356566,-400.0,8.294e-05,2]
[360735771,1746957356591,-400.0,8.294e-05,2]
[360735772,1746957356618,-400.0,8.294e-05,2]
[360735773,1746957356644,-400.0,8.294e-05,2]
[360735774,1746957356670,-400.0,8.294e-05,2]
[360735775,1746957356695,-400.0,8.294e-05,2]
[360735776,1746957356721,-400.0,8.294e-05,2]
[360735777,1746957356749,-400.0,8.294e-05,2]
[360735778,1746957356776,-400.0,8.294e-05,2]
[360735779,1746957356806,-466.94,8.294e-05,2]
[360735780,1746957356834,-400.0,8.294e-05,2]
[360735781,1746957356860,-400.0,8.294e-05,2]
[360735782,1746957356886,-400.0,8.294e-05,2]
[360735783,1746957356914,-400.0,8.294e-05,2]
[360735784,1746957356942,-400.0,8.294e-05,2]
[360735785,1746957356970,-400.0,8.294e-05,2]
[360735786,1746957356995,-465.27482249,8.294e-05,2]
[360735787,1746957357019,-400.0,8.294e-05,2]
[360735788,1746957357047,-400.0,8.294e-05,2]
[360735789,1746957357073,-400.0,8.294e-05,2]
[360735790,1746957357098,-400.0,8.294e-05,2]
[360735791,1746957357127,-461.43,8.294e-05,2]
[360735792,1746957357152,-400.0,8.294e-05,2]
[360735793,1746957357177,-400.0,8.294e-05,2]
[360735794,1746957357203,-400.0,8.294e-05,2]
[360735795,1746957357229,-450.42856,8.295e-05,2]
[360735796,1746957357254,-400.0,8.295e-05,2]
[360735797,1746957357283,-400.0,8.295e-05,2]
[360735798,1746957357311,-400.0,8.295e-05,2]
[360735799,1746957357336,-616.51,8.295e-05,2]
[360735800,1746957357362,-400.0,8.295e-05,2]
[360735801,1746957357390,-533.06,8.295e-05,2]
[360735802,1746957357544,-400.0,8.295e-05,2]
[360735803,1746957357572,-400.0,8.295e-05,2]
[360735804,1746957357598,-1779.46,8.295e-05,2]
[360735805,1746957357623,-400.0,8.295e-05,2]
[360735806,1746957357649,-1399.91,8.295e-05,2]
[360735807,1746957357674,-400.0,8.295e-05,2]
[360735808,1746957357699,-400.0,8.295e-05,2]
[360735809,1746957357726,-511.79,8.295e-05,2]
[360735810,1746957357751,-400.0,8.295e-05,2]
[360735811,1746957357776,-400.0,8.295e-05,2]
[360735812,1746957357800,-400.0,8.295e-05,2]
[360735813,1746957357826,-400.0,8.295e-05,2]
[360735814,1746957357852,-406.75,8.296e-05,2]
[360735815,1746957357877,-400.0,8.296e-05,2]
[360735816,1746957357902,-400.0,8.296e-05,2]
[360735817,1746957357928,-400.0,8.296e-05,2]
[360735818,1746957357953,-400.0,8.296e-05,2]
[360735819,1746957357978,-400.0,8.296e-05,2]
[360735820,1746957358006,-400.0,8.296e-05,2]
[360735821,1746957358030,-344.88459835,8.296e-05,2]
[360735822,1746957358059,-400.0,8.296e-05,2]
[360735823,1746957358084,-400.0,8.296e-05,2]
[360735824,1746957358109,-878.06,8.296e-05,2]
[360735825,1746957358135,-400.0,8.296e-05,2]
[360735826,1746957358159,-787.48,8.296e-05,2]
[360735827,1746957358184,-400.0,8.296e-05,2]
[360735828,1746957358212,-400.0,8.296e-05,2]
[360735829,1746957358238,-400.0,8.296e-05,2]
[360735830,1746957358265,-400.0,8.296e-05,2]
[360735831,1746957358289,-400.0,8.296e-05,2]
[360735832,1746957358314,-424.79,8.296e-05,2]
[360735833,1746957358338,-400.0,8.296e-05,2]
[360735834,1746957358362,-400.0,8.296e-05,2]
[360735835,1746957358389,-400.0,8.296e-05,2]
[360735836,1746957358415,-400.0,8.297e-05,2]
[360735837,1746957358443,-400.0,8.297e-05,2]
[360735838,1746957358468,-400.0,8.297e-05,2]
[360735839,1746957358493,-400.0,8.297e-05,2]
[360735840,1746957358519,-400.0,8.297e-05,2]
[360735841,1746957358545,-400.0,8.297e-05,2]
[360735842,1746957358570,-400.0,8.297e-05,2]
[360735843,1746957358595,-218.895774,8.298e-05,2]
[360735844,1746957358620,-218.895774,8.298e-05,2]
[360735845,1746957358643,-191.227888,8.299e-05,2]
[360735846,1746957358669,-218.895774,8.301e-05,2]
[360735847,1746957358694,-218.895774,8.301e-05,2]
[360735848,1746957358720,-400.0,8.343e-05,2]
[360735849,1746957358745,-400.0,8.343e-05,2]
[360735850,1746957358772,-400.0,8.343e-05,2]
[360735851,1746957358798,-738.08,8.343e-05,2]
[360735852,1746957358829,-1347.89,8.343e-05,2]
[360735853,1746957358855,-400.0,8.343e-05,2]
[360735854,1746957358881,-400.0,8.343e-05,2]
[360735855,1746957358908,-1134.1,8.343e-05,2]
[360735856,1746957358936,-515.23,8.343e-05,2]
[360735857,1746957358962,-400.0,8.343e-05,2]
[360735858,1746957358990,-400.0,8.343e-05,2]
[360735859,1746957359018,-400.0,8.343e-05,2]
[360735860,1746957359045,-400.0,8.343e-05,2]
[360735861,1746957359070,-400.0,8.343e-05,2]
[360735862,1746957359095,-400.0,8.343e-05,2]
[360735863,1746957359121,-400.0,8.343e-05,2]
[360735864,1746957359147,-400.0,8.343e-05,2]
[360735865,1746957359172,-400.03,8.343e-05,2]
[360735866,1746957359196,-400.0,8.343e-05,2]
[360735867,1746957359221,-703.9,8.343e-05,2]
[360735868,1746957359246,-400.0,8.343e-05,2]
[360735869,1746957359271,-400.0,8.343e-05,2]
[360735870,1746957359295,-400.0,8.343e-05,2]
[360735871,1746957359320,-400.0,8.343e-05,2]
[360735872,1746957359345,-400.0,8.568e-05,2]
[360735873,1746957359369,-476.31,8.568e-05,2]
[360735874,1746957359393,-400.0,8.568e-05,2]
[360735875,1746957359418,-400.0,8.568e-05,2]
[360735876,1746957359443,-400.0,8.568e-05,2]
[360735877,1746957359469,-400.0,8.568e-05,2]
[360735878,1746957359496,-400.0,8.568e-05,2]
[360735879,1746957359523,-400.0,8.568e-05,2]
[360735880,1746957359548,-400.0,8.568e-05,2]
[360735881,1746957359574,-273.8201,8.568e-05,2]
[360735882,1746957359599,-400.0,8.568e-05,2]
[360735883,1746957359624,-400.0,8.568e-05,2]
[360735884,1746957359651,-466.94,8.568e-05,2]
[360735885,1746957359676,-400.0,8.568e-05,2]
[360735886,1746957359702,-400.0,8.568e-05,2]
[360735887,1746957359726,-400.0,8.568e-05,2]
[360735888,1746957359751,-400.0,8.568e-05,2]
[360735889,1746957359776,-400.0,8.568e-05,2]
[360735890,1746957359802,-400.0,8.568e-05,2]
[360735891,1746957359827,-400.0,8.568e-05,2]
[360735892,1746957359852,-400.0,8.568e-05,2]
[360735893,1746957359876,-400.0,8.568e-05,2]
[360735894,1746957359902,-400.0,8.568e-05,2]
[360735895,1746957359926,-461.43,8.568e-05,2]
[360735896,1746957359951,-400.0,8.568e-05,2]
[360735897,1746957359975,-400.0,8.568e-05,2]
[360735898,1746957360000,-400.0,8.568e-05,2]
[360735899,1746957360026,-400.0,8.569e-05,2]
[360735900,1746957360051,-400.0,8.569e-05,2]
[360735901,1746957360076,-400.0,8.569e-05,2]
[360735902,1746957360103,-616.51,8.569e-05,2]
[360735903,1746957360129,-400.0,8.569e-05,2]
[360735904,1746957360158,-533.06,8.569e-05,2]
[360735905,1746957360185,-400.0,8.569e-05,2]
[360735906,1746957360215,-400.0,8.569e-05,2]
[360735907,1746957360243,-1779.46,8.569e-05,2]
[360735908,1746957360271,-400.0,8.569e-05,2]
[360735909,1746957360299,-1399.91,8.569e-05,2]
[360735910,1746957360325,-400.0,8.569e-05,2]
[360735911,1746957360352,-400.0,8.569e-05,2]
[360735912,1746957360382,-511.79,8.569e-05,2]
[360735913,1746957360409,-400.0,8.569e-05,2]
[360735914,1746957360436,-400.0,8.569e-05,2]
[360735915,1746957360462,-400.0,8.569e-05,2]
[360735916,1746957360488,-400.0,8.569e-05,2]
[360735917,1746957360516,-406.75,8.57e-05,2]
[360735918,1746957360673,-400.0,8.57e-05,2]
[360735919,1746957360700,-400.0,8.57e-05,2]
[360735920,1746957360727,-400.0,8.57e-05,2]
[360735921,1746957360752,-400.0,8.57e-05,2]
[360735922,1746957360778,-400.0,8.57e-05,2]
[360735923,1746957360803,-400.0,8.57e-05,2]
[360735924,1746957360831,-400.0,8.57e-05,2]
[360735925,1746957360856,-400.0,8.57e-05,2]
[360735926,1746957360882,-878.06,8.57e-05,2]
[360735927,1746957360908,-400.0,8.57e-05,2]
[360735928,1746957360934,-787.48,8.57e-05,2]
[360735929,1746957360959,-400.0,8.57e-05,2]
[360735930,1746957360985,-400.0,8.57e-05,2]
[360735931,1746957361011,-400.0,8.57e-05,2]
[360735932,1746957361036,-209.32,8.57e-05,2]
[360735933,1746957361061,-400.0,8.57e-05,2]
[360735934,1746957361085,-424.79,8.57e-05,2]
[360735935,1746957361111,-400.0,8.57e-05,2]
[360735936,1746957361135,-400.0,8.57e-05,2]
[360735937,1746957361165,-494.37595693,8.57e-05,2]
[360735938,1746957361192,-435.43267322,8.571e-05,2]
[360735939,1746957361218,-400.0,8.571e-05,2]
[360735940,1746957361244,-400.0,8.571e-05,2]
[360735941,1746957361268,-400.0,8.571e-05,2]
[360735942,1746957361292,-442.35894357,8.571e-05,2]
[360735943,1746957361316,-400.0,8.571e-05,2]
[360735944,1746957361342,-400.0,8.571e-05,2]
[360735945,1746957361367,-218.895774,8.573e-05,2]
[360735946,1746957361394,-218.895774,8.573e-05,2]
[360735947,1746957361420,-400.0,8.617e-05,2]
[360735948,1746957361446,-400.0,8.617e-05,2]
[360735949,1746957361473,-400.0,8.617e-05,2]
[360735950,1746957361501,-738.08,8.617e-05,2]
[360735951,1746957361530,-1347.89,8.617e-05,2]
[360735952,1746957361556,-400.0,8.617e-05,2]
[360735953,1746957361582,-400.0,8.617e-05,2]
[360735954,1746957361608,-1134.1,8.617e-05,2]
[360735955,1746957361636,-515.23,8.617e-05,2]
[360735956,1746957361661,-400.0,8.617e-05,2]
[360735957,1746957361688,-400.0,8.617e-05,2]
[360735958,1746957361714,-400.0,8.617e-05,2]
[360735959,1746957361741,-400.0,8.617e-05,2]
[360735960,1746957361765,-400.0,8.617e-05,2]
[360735961,1746957361791,-400.0,8.617e-05,2]
[360735962,1746957361817,-400.0,8.617e-05,2]
[360735963,1746957361849,-400.0,8.617e-05,2]
[360735964,1746957361876,-400.03,8.617e-05,2]
[360735965,1746957361902,-220.10064492,8.617e-05,2]
[360735966,1746957361928,-703.9,8.617e-05,2]
[360735967,1746957361955,-400.0,8.617e-05,2]
[360735968,1746957361979,-400.0,8.617e-05,2]
[360735969,1746957362005,-400.0,8.617e-05,2]
[360735970,1746957362030,-400.0,8.617e-05,2]
[360735971,1746957362054,-218.895774,8.799e-05,2]
[360735972,1746957362078,-218.895774,8.799e-05,2]
[360735973,1746957362102,-400.0,8.842e-05,2]
[360735974,1746957362127,-476.31,8.842e-05,2]
[360735975,1746957362151,-400.0,8.842e-05,2]
[360735976,1746957362176,-400.0,8.842e-05,2]
[360735977,1746957362201,-400.0,8.842e-05,2]
[360735978,1746957362226,-400.0,8.842e-05,2]
[360735979,1746957362252,-400.0,8.842e-05,2]
[360735980,1746957362278,-400.0,8.842e-05,2]
[360735981,1746957362303,-400.0,8.842e-05,2]
[360735982,1746957362329,-400.0,8.842e-05,2]
[360735983,1746957362355,-400.0,8.842e-05,2]
[360735984,1746957362382,-466.94,8.842e-05,2]
[360735985,1746957362407,-261.76469714,8.842e-05,2]
[360735986,1746957362432,-400.0,8.842e-05,2]
[360735987,1746957362456,-400.0,8.842e-05,2]
[360735988,1746957362481,-400.0,8.842e-05,2]
[360735989,1746957362505,-400.0,8.842e-05,2]
[360735990,1746957362531,-400.0,8.842e-05,2]
[360735991,1746957362556,-400.0,8.842e-05,2]
[360735992,1746957362582,-400.0,8.842e-05,2]
[360735993,1746957362607,-400.0,8.842e-05,2]
[360735994,1746957362632,-400.0,8.842e-05,2]
[360735995,1746957362656,-461.43,8.842e-05,2]
[360735996,1746957362681,-400.0,8.842e-05,2]
[360735997,1746957362706,-400.0,8.842e-05,2]
[360735998,1746957362733,-400.0,8.842e-05,2]
[360735999,1746957362759,-400.0,8.843e-05,2]
[360736000,1746957362785,-400.0,8.843e-05,2]
[360736001,1746957362809,-400.0,8.843e-05,2]
[360736002,1746957362838,-616.51,8.843e-05,2]
[360736003,1746957362863,-400.0,8.843e-05,2]
[360736004,1746957362891,-533.06,8.843e-05,2]
[360736005,1746957362917,-400.0,8.843e-05,2]
[360736006,1746957362943,-400.0,8.843e-05,2]
[360736007,1746957362968,-1779.46,8.843e-05,2]
[360736008,1746957362993,-400.0,8.843e-05,2]
[360736009,1746957363020,-1399.91,8.843e-05,2]
[360736010,1746957363047,-400.0,8.843e-05,2]
[360736011,1746957363073,-400.0,8.843e-05,2]
[360736012,1746957363100,-511.79,8.843e-05,2]
[360736013,1746957363126,-400.0,8.843e-05,2]
[360736014,1746957363153,-400.0,8.843e-05,2]
[360736015,1746957363178,-164.83,8.843e-05,2]
[360736016,1746957363203,-400.0,8.843e-05,2]
[360736017,1746957363228,-406.75,8.844e-05,2]
[360736018,1746957363254,-400.0,8.844e-05,2]
[360736019,1746957363281,-205.46202308,8.844e-05,2]
[360736020,1746957363309,-400.0,8.844e-05,2]
[360736021,1746957363336,-400.0,8.844e-05,2]
[360736022,1746957363363,-400.0,8.844e-05,2]
[360736023,1746957363391,-400.0,8.844e-05,2]
[360736024,1746957363417,-151.0,8.844e-05,2]
[360736025,1746957363443,-151.0,8.844e-05,2]
[360736026,1746957363471,-400.0,8.844e-05,2]
[360736027,1746957363497,-400.0,8.844e-05,2]
[360736028,1746957363524,-878.06,8.844e-05,2]
[360736029,1746957363551,-400.0,8.844e-05,2]
[360736030,1746957363577,-787.48,8.844e-05,2]
[360736031,1746957363605,-151.0,8.844e-05,2]
[360736032,1746957363631,-151.0,8.844e-05,2]
[360736033,1746957363658,-400.0,8.844e-05,2]
[360736034,1746957363817,-400.0,8.844e-05,2]
[360736035,1746957363849,-400.0,8.844e-05,2]
[360736036,1746957363876,-400.0,8.844e-05,2]
[360736037,1746957363903,-424.79,8.844e-05,2]
[360736038,1746957363931,-400.0,8.844e-05,2]
[360736039,1746957363957,-400.0,8.844e-05,2]
[360736040,1746957363983,-190.312079,8.844e-05,2]
[360736041,1746957364010,-190.312079,8.844e-05,2]
[360736042,1746957364035,-400.0,8.845e-05,2]
[360736043,1746957364061,-400.0,8.845e-05,2]
[360736044,1746957364086,-400.0,8.845e-05,2]
[360736045,1746957364112,-400.0,8.845e-05,2]
[360736046,1746957364138,-400.0,8.845e-05,2]
[360736047,1746957364164,-151.0,8.845e-05,2]
[360736048,1746957364189,-151.0,8.845e-05,2]
[360736049,1746957364215,-151.0,8.845e-05,2]
[360736050,1746957364239,-151.0,8.845e-05,2]
[360736051,1746957364268,-218.895774,8.847e-05,2]
[360736052,1746957364297,-218.895774,8.847e-05,2]
[360736053,1746957364325,-400.0,8.891e-05,2]
[360736054,1746957364354,-400.0,8.891e-05,2]
[360736055,1746957364383,-293.07587011,8.891e-05,2]
[360736056,1746957364413,-738.08,8.891e-05,2]
[360736057,1746957364441,-1347.89,8.891e-05,2]
[360736058,1746957364469,-510.38629885,8.891e-05,2]
[360736059,1746957364497,-400.0,8.891e-05,2]
[360736060,1746957364526,-1134.1,8.891e-05,2]
[360736061,1746957364557,-515.23,8.891e-05,2]
[360736062,1746957364584,-400.0,8.891e-05,2]
[360736063,1746957364612,-400.0,8.891e-05,2]
[360736064,1746957364642,-400.0,8.891e-05,2]
[360736065,1746957364673,-400.0,8.891e-05,2]
[360736066,1746957364699,-400.0,8.891e-05,2]
[360736067,1746957364726,-400.0,8.891e-05,2]
[360736068,1746957364752,-400.0,8.891e-05,2]
[360736069,1746957364781,-400.0,8.891e-05,2]
[360736070,1746957364808,-400.03,8.891e-05,2]
[360736071,1746957364837,-703.9,8.891e-05,2]
[360736072,1746957364863,-400.0,8.891e-05,2]
[360736073,1746957364891,-400.0,8.891e-05,2]
[360736074,1746957364918,-452.94575054,8.891e-05,2]
[360736075,1746957364945,-400.0,8.891e-05,2]
[360736076,1746957364971,-153.0,8.96e-05,2]
[360736077,1746957364997,-500.0,9.017e-05,2]
[360736078,1746957365024,-533.8527811,9.017e-05,2]
[360736079,1746957365049,-500.0,9.03e-05,2]
[360736080,1746957365073,-500.0,9.03e-05,2]
[360736081,1746957365098,-500.0,9.073e-05,2]
[360736082,1746957365123,-159.27487113,9.073e-05,2]
[360736083,1746957365148,-500.0,9.108e-05,2]
[360736084,1746957365173,-503.15513072,9.108e-05,2]
[360736085,1746957365198,-196.95629721,9.108e-05,2]
[360736086,1746957365223,-500.0,9.113e-05,2]
[360736087,1746957365249,-500.0,9.113e-05,2]
[360736088,1746957365276,-400.0,9.116e-05,2]
[360736089,1746957365303,-476.31,9.116e-05,2]
[360736090,1746957365330,-83.34075779,9.116e-05,2]
[360736091,1746957382956,444.22,8.02e-05,2]
[360736092,1746957393838,400.0,8.02e-05,2]
[360736093,1746957405611,513.76,8.02e-05,2]
[360736094,1746957410706,1482.88,8.02e-05,2]
[360736095,1746957415337,400.0,8.02e-05,2]
[360736096,1746957420036,-224.85715169,8.021e-05,2]
[360736097,1746957420067,-400.0,8.068e-05,2]
[360736098,1746957420097,-615.07,8.068e-05,2]
[360736099,1746957420126,-400.0,8.068e-05,2]
[360736100,1746957420156,-400.0,8.069e-05,2]
[360736101,1746957421590,400.0,8.02e-05,2]
[360736102,1746957424094,1123.24,8.068e-05,2]
[360736103,1746957428571,400.0,8.02e-05,2]
[360736104,1746957431591,400.0,8.069e-05,2]
[360736105,1746957433750,400.0,8.021e-05,2]
[360736106,1746957438274,-444.22,8.294e-05,2]
[360736107,1746957438303,-400.0,8.294e-05,2]
[360736108,1746957438333,-513.76,8.294e-05,2]
[360736109,1746957438363,-1482.88,8.294e-05,2]
[360736110,1746957438392,-400.0,8.294e-05,2]
[360736111,1746957438420,-400.0,8.295e-05,2]
[360736112,1746957438461,400.0,8.069e-05,2]
[360736113,1746957438694,400.0,8.02e-05,2]
[360736114,1746957438937,400.0,8.294e-05,2]
[360736115,1746957439509,945.09,8.068e-05,2]
[360736116,1746957439904,1166.59,8.02e-05,2]
[360736117,1746957440156,1166.59,8.294e-05,2]
[360736118,1746957445530,400.0,8.068e-05,2]
[360736119,1746957448109,400.0,8.02e-05,2]
[360736120,1746957448361,400.0,8.294e-05,2]
[360736121,1746957450568,400.0,8.069e-05,2]
[360736122,1746957452967,400.0,8.068e-05,2]
[360736123,1746957458600,400.0,8.069e-05,2]
[360736124,1746957459978,429.36,8.068e-05,2]
[360736125,1746957460617,400.0,8.068e-05,2]
[360736126,1746957464096,400.0,8.069e-05,2]
[360736127,1746957468501,400.0,8.069e-05,2]
[360736128,1746957468737,400.0,8.02e-05,2]
[360736129,1746957469011,270.67,8.294e-05,2]
[360736130,1746957471218,426.49,8.02e-05,2]
[360736131,1746957471464,426.49,8.294e-05,2]
[360736132,1746957473003,400.0,8.068e-05,2]
[360736133,1746957484622,400.0,8.02e-05,2]
[360736134,1746957484875,492.25063711,8.294e-05,2]
[360736135,1746957484949,400.0,8.069e-05,2]
[360736136,1746957491126,400.0,8.02e-05,2]
[360736137,1746957491369,400.0,8.294e-05,2]
[360736138,1746957501240,400.0,8.021e-05,2]
[360736139,1746957501477,187.70578876,8.295e-05,2]
[360736140,1746957502707,400.0,8.02e-05,2]
[360736141,1746957502982,400.0,8.294e-05,2]
[360736142,1746957503017,400.0,8.021e-05,2]
[360736143,1746957503262,400.0,8.295e-05,2]
[360736144,1746957503572,400.0,8.068e-05,2]
[360736145,1746957504792,400.0,8.069e-05,2]
[360736146,1746957505242,400.0,8.069e-05,2]
[360736147,1746957506178,400.0,8.068e-05,2]
[360736148,1746957509402,400.0,8.068e-05,2]
[360736149,1746957509440,400.0,8.02e-05,2]
[360736150,1746957509658,400.0,8.294e-05,2]
[360736151,1746957512454,400.0,8.068e-05,2]
[360736152,1746957515998,400.0,8.02e-05,2]
[360736153,1746957516232,400.0,8.294e-05,2]
[360736154,1746957522787,400.0,8.069e-05,2]
[360736155,1746957525398,400.0,8.068e-05,2]
[360736156,1746957532020,400.0,8.068e-05,2]
[360736157,1746957540334,586.59,8.068e-05,2]
[360736158,1746957553148,400.0,8.068e-05,2]
[360736159,1746957560052,407.2,8.069e-05,2]
[360736161,1746957562648,400.0,8.068e-05,2]
[360736162,1746957567782,470.95,8.069e-05,2]
[360736163,1746957575274,400.0,8.068e-05,2]
[360736164,1746957577502,400.0,8.069e-05,2]
[360736165,1746957581604,400.0,8.068e-05,2]
[360736168,1746957588181,400.0,8.068e-05,2]
[360736169,1746957594298,1359.31,8.069e-05,2]
[360736170,1746957598659,400.0,8.02e-05,2]
[360736171,1746957598910,400.0,8.294e-05,2]
[360736172,1746957599753,400.0,8.069e-05,2]
[360736174,1746957605671,400.0,8.02e-05,2]
[360736175,1746957606287,400.0,8.294e-05,2]
[360736176,1746957608406,400.0,8.069e-05,2]
[360736177,1746957621515,1069.38,8.069e-05,2]
[360736178,1746957623771,400.0,8.021e-05,2]
[360736179,1746957624064,400.0,8.295e-05,2]
[360736180,1746957632823,404.0,8.193e-05,2]
[360736181,1746957637494,400.0,8.068e-05,2]
[360736182,1746957648263,400.0,8.069e-05,2]
[360736183,1746957648884,400.0,8.02e-05,2]
[360736184,1746957649129,400.0,8.294e-05,2]
[360736185,1746957652526,400.0,8.069e-05,2]
[360736186,1746957652873,731.72,8.02e-05,2]
[360736187,1746957653126,731.72,8.294e-05,2]
[360736188,1746957662255,400.0,8.02e-05,2]
[360736189,1746957662556,400.0,8.294e-05,2]
[360736190,1746957667636,400.0,8.068e-05,2]
[360736191,1746957673536,400.0,8.068e-05,2]
[360736192,1746957675029,932.22,8.02e-05,2]
[360736193,1746957675273,932.22,8.294e-05,2]
[360736194,1746957684206,400.0,8.068e-05,2]
[360736195,1746957693751,347.8881509,8.068e-05,2]
[360736196,1746957699391,400.0,8.068e-05,2]
[360736197,1746957700994,400.0,8.068e-05,2]
[360736200,1746957715136,400.0,8.068e-05,2]
[360736201,1746957733939,400.0,8.068e-05,2]
[360736202,1746957739837,400.0,8.068e-05,2]
[360736204,1746957747051,400.0,8.02e-05,2]
[360736205,1746957747395,400.0,8.294e-05,2]
[360736206,1746957757776,400.0,8.068e-05,2]
[360736208,1746957784486,256.24720575,8.02e-05,2]
[360736209,1746957784635,400.0,8.068e-05,2]
[360736210,1746957794410,400.0,8.02e-05,2]
[360736211,1746957794699,400.0,8.294e-05,2]
[360736212,1746957799716,400.0,8.02e-05,2]
[360736213,1746957799958,400.0,8.294e-05,2]
[360736215,1746957804699,451.32,8.068e-05,2]
[360736216,1746957813262,1302.67,8.068e-05,2]
[360736217,1746957814779,400.0,8.068e-05,2]
[360736218,1746957816148,400.0,8.02e-05,2]
[360736219,1746957816734,400.0,8.294e-05,2]
[360736220,1746957827281,400.0,8.02e-05,2]
[360736221,1746957827523,400.0,8.294e-05,2]
[360736222,1746957838721,400.0,8.068e-05,2]
[360736223,1746957843242,1024.82,8.068e-05,2]
[360736224,1746957848938,400.0,8.068e-05,2]
[360736225,1746957849908,400.0,8.02e-05,2]